bitfinex/quotes_SOLUSD_20250307
["timestamp","ask_amount","ask_price","bid_price","bid_amount"]
[1741312179576,3.62394153,142.04,141.97,0.28432314]
[1741312179777,3.62394153,142.04,141.97,29.28609409]
[1741312179977,3.62394153,142.04,141.99,0.14216157]
[1741312180279,0.033,142.04,142.01,29.00177095]
[1741312180483,0.033,142.04,142.02,30.62198097]
[1741312180792,0.033,142.04,142.02,29.14393252]
[1741312181090,0.033,142.04,142.02,0.14216157]
[1741312181469,0.033,142.04,142.0,29.00177095]
[1741312181671,0.033,142.04,142.01,0.14216157]
[1741312182374,0.033,142.04,142.02,312.0]
[1741312182774,0.033,142.04,142.01,137.8]
[1741312183488,0.033,142.04,141.97,137.8]
[1741312184300,0.033,142.04,141.95,137.8]
[1741312184488,0.033,142.04,141.93,166.80177095]
[1741312184696,3.56027401,142.04,141.94,137.8]
[1741312184887,1.4807,142.03,141.92,137.8]
[1741312185080,1.4807,142.03,141.93,0.14216157]
[1741312185397,3.57721,142.04,141.94,30.48069152]
[1741312185696,3.57721,142.04,141.95,0.14216157]
[1741312186091,5.05791,142.04,141.95,0.14216157]
[1741312186286,5.05791,142.04,141.94,29.00177095]
[1741312186486,3.57721,142.04,141.93,30.62274182]
[1741312186799,3.57721,142.04,141.93,29.00177095]
[1741312186997,3.57721,142.04,141.94,0.14216157]
[1741312187498,3.57721,142.04,141.94,30.62265427]
[1741312187677,3.57721,142.04,141.96,0.14216157]
[1741312188075,3.57721,142.04,141.97,1.47849405]
[1741312188274,3.57721,142.04,141.96,168.42232346]
[1741312188478,3.57721,142.04,141.96,137.94216157]
[1741312189200,3.57721,142.04,141.96,449.94216157]
[1741312189801,3.57721,142.04,141.96,449.8]
[1741312190004,3.57721,142.04,141.96,137.8]
[1741312190498,5.05791,142.04,141.96,137.8]
[1741312190797,7.857,142.03,141.9,238.57964886]
[1741312190977,1.4807,142.02,141.9,248.93177095]
[1741312191184,1.4807,142.02,141.9,0.03]
[1741312192116,18.64964886,142.01,141.9,0.03]
[1741312192274,11.6407,142.0,141.9,0.03]
[1741312194281,1.5012,141.99,141.9,0.03]
[1741312194604,1.4807,141.98,141.9,0.03]
[1741312195379,6.592,141.96,141.9,0.03]
[1741312195580,1.4807,141.95,141.9,0.03]
[1741312197285,1.5905,141.94,141.81,0.03]
[1741312197499,11.6407,141.93,141.82,0.14216157]
[1741312197698,10.16,141.93,141.82,29.14393252]
[1741312198096,10.16,141.93,141.82,0.14216157]
[1741312198411,1.4807,141.92,141.82,312.0]
[1741312198790,15.22625884,141.93,141.82,341.00177095]
[1741312198993,13.74555884,141.93,141.83,29.14393252]
[1741312199503,13.74555884,141.93,141.83,137.94216157]
[1741312199694,13.74555884,141.93,141.83,166.94393252]
[1741312199897,13.74555884,141.93,141.83,137.94216157]
[1741312200109,15.22625884,141.93,141.83,137.8]
[1741312200409,15.22625884,141.93,141.81,0.03]
[1741312200904,15.22625884,141.93,141.81,29.03177095]
[1741312201104,15.22625884,141.93,141.81,0.03]
[1741312201413,18.64964886,141.92,141.81,0.03]
[1741312201598,1.4807,141.91,141.81,0.03]
[1741312201906,6.4683,141.9,141.81,0.03]
[1741312202108,1.4807,141.89,141.81,0.03]
[1741312202309,1.6467,141.88,141.81,0.03]
[1741312202518,1.4807,141.87,141.81,0.03]
[1741312203212,5.17041527,141.88,141.81,0.03]
[1741312203911,3.52371527,141.88,141.83,29.00177095]
[1741312204108,1.6275,141.92,141.82,1.62204588]
[1741312204410,1.6275,141.92,141.82,137.94216157]
[1741312204707,1.4807,141.91,141.81,0.03]
[1741312205108,18.79181043,141.9,141.81,0.03]
[1741312205312,6.4589,141.87,141.81,0.03]
[1741312205512,1.66,141.85,141.81,0.03]
[1741312207005,3.1407,141.85,141.81,0.03]
[1741312207894,5.17265374,141.85,141.81,0.03]
[1741312208212,6.65335374,141.85,141.75,0.03]
[1741312208610,10.16,141.84,141.75,0.03]
[1741312209003,10.16,141.84,141.75,341.03177095]
[1741312209309,5.17265374,141.85,141.78,29.14393252]
[1741312209699,5.17265374,141.85,141.76,137.8]
[1741312209905,5.17265374,141.85,141.77,29.14393252]
[1741312210109,5.17265374,141.85,141.77,0.14216157]
[1741312210520,5.17265374,141.85,141.75,0.03]
[1741312210723,6.65335374,141.85,141.75,0.03]
[1741312210922,5.17265374,141.85,141.75,29.17393252]
[1741312211226,5.17265374,141.85,141.75,166.97393252]
[1741312211425,5.17265374,141.85,141.75,137.83]
[1741312211989,6.65335374,141.85,141.75,137.83]
[1741312212521,6.65335374,141.85,141.75,449.83]
[1741312213032,6.65335374,141.85,141.75,0.03]
[1741312213596,18.64964886,141.84,141.75,0.03]
[1741312213796,1.4807,141.83,141.75,0.03]
[1741312214821,1.5447,141.81,141.71,0.03]
[1741312215027,1.5447,141.81,141.72,29.14393252]
[1741312215323,1.5447,141.81,141.71,137.83]
[1741312216099,1.5447,141.81,141.71,449.83]
[1741312216804,10.16,141.8,141.71,449.83]
[1741312218122,11.7047,141.81,141.71,449.83]
[1741312218324,11.7047,141.81,141.75,0.03]
[1741312219209,1.5447,141.81,141.75,0.03]
[1741312219413,10.16,141.8,141.75,0.03]
[1741312219824,10.1041,141.75,141.66,0.03]
[1741312220024,60.16,141.8,141.56,0.03]
[1741312220025,6.5947,141.68,141.56,0.03]
[1741312220208,11.6407,141.67,141.52,6.0055]
[1741312220518,11.6407,141.67,141.47,144.2271]
[1741312220727,18.79181043,141.66,141.51,137.8]
[1741312220929,1.4807,141.65,141.49,137.8]
[1741312221107,1.4807,141.65,141.5,0.14216157]
[1741312221318,1.5566,141.63,141.49,137.8]
[1741312221516,1.4807,141.62,141.47,144.2271]
[1741312222002,6.102,141.6,141.47,144.2271]
[1741312222204,1.4807,141.59,141.47,6.4271]
[1741312222834,1.4807,141.59,141.47,318.4271]
[1741312223935,16.262,141.6,141.48,1.48369668]
[1741312224133,1.4807,141.59,141.48,0.14216157]
[1741312225207,1.4807,141.59,141.47,6.4271]
[1741312225412,1.4807,141.59,141.44,148.34026717]
[1741312225612,1.4807,141.59,141.44,177.34203812]
[1741312225809,1.4807,141.59,141.48,0.14216157]
[1741312226818,1.4807,141.59,141.49,312.0]
[1741312227038,5.10195562,141.59,141.49,312.0]
[1741312227437,1.5759,141.58,141.49,312.0]
[1741312227642,1.5759,141.58,141.43,6.0028]
[1741312227643,1.62286157,141.57,141.43,6.0028]
[1741312228130,1.4807,141.57,141.45,29.14393252]
[1741312228331,3.0566,141.58,141.47,0.14216157]
[1741312229023,3.0566,141.58,141.46,137.8]
[1741312230441,13.2166,141.58,141.47,29.14393252]
[1741312230648,11.7359,141.58,141.48,312.0]
[1741312230852,11.7359,141.58,141.49,29.14393252]
[1741312231142,1.5759,141.58,141.49,0.14216157]
[1741312231320,1.5759,141.58,141.49,139.4255828]
[1741312231513,1.5759,141.58,141.49,137.94216157]
[1741312231712,1.5759,141.58,141.49,166.94393252]
[1741312232227,1.5759,141.58,141.49,137.94216157]
[1741312232955,3.0566,141.58,141.47,29.14393252]
[1741312233253,1.5759,141.58,141.49,0.14216157]
[1741312234133,1.5759,141.58,141.52,312.0]
[1741312234750,1.5759,141.58,141.52,0.14216157]
[1741312235930,3.62125562,141.59,141.54,0.14216157]
[1741312236134,5.03060307,141.63,141.54,0.14216157]
[1741312236326,5.03060307,141.63,141.54,166.94393252]
[1741312236528,5.03060307,141.63,141.56,0.14216157]
[1741312237443,5.03060307,141.63,141.55,0.14216157]
[1741312237747,5.03060307,141.63,141.58,312.0]
[1741312243633,5.06360307,141.63,141.58,312.0]
[1741312244429,5.06360307,141.63,141.53,0.14216157]
[1741312245043,1.4807,141.62,141.52,0.14216157]
[1741312245243,1.4807,141.62,141.51,144.4312]
[1741312245443,1.4807,141.62,141.47,144.3129]
[1741312245644,1.4807,141.62,141.47,173.31467095]
[1741312245843,1.4807,141.62,141.48,0.14216157]
[1741312246368,1.4807,141.62,141.51,0.14216157]
[1741312246857,1.4807,141.62,141.51,29.14393252]
[1741312247442,1.4807,141.62,141.53,312.0]
[1741312248561,1.4807,141.62,141.47,6.5129]
[1741312248768,1.4807,141.62,141.48,29.00177095]
[1741312248953,1.4807,141.62,141.49,0.14216157]
[1741312249159,1.4807,141.62,141.49,139.42558428]
[1741312249465,1.4807,141.62,141.49,137.94216157]
[1741312249768,1.4807,141.62,141.49,166.94393252]
[1741312249947,1.4807,141.62,141.49,137.94216157]
[1741312250485,1.4807,141.62,141.49,166.94393252]
[1741312250656,1.4807,141.62,141.49,137.94216157]
[1741312250840,1.4807,141.62,141.49,137.8]
[1741312251174,18.79181043,141.61,141.47,6.5129]
[1741312251470,11.6207,141.6,141.47,6.5129]
[1741312251696,11.6207,141.6,141.5,312.0]
[1741312252438,26.71861043,141.59,141.46,0.03]
[1741312252641,18.79181043,141.57,141.46,0.03]
[1741312252867,1.4807,141.56,141.46,0.03]
[1741312253971,18.64964886,141.57,141.46,0.03]
[1741312254176,1.4807,141.56,141.46,0.03]
[1741312254478,7.6435,141.55,141.46,0.03]
[1741312254670,1.4807,141.54,141.46,0.03]
[1741312254977,7.6435,141.55,141.46,0.03]
[1741312254978,17.7835,141.55,141.46,0.03]
[1741312255340,1.4807,141.54,141.46,0.03]
[1741312255557,1.4807,141.54,141.46,312.03]
[1741312256995,21.38559121,141.55,141.46,312.03]
[1741312257198,21.38559121,141.55,141.46,0.03]
[1741312257483,1.4807,141.54,141.46,0.03]
[1741312258776,1.6064,141.53,141.46,0.03]
[1741312258981,1.4807,141.52,141.46,0.03]
[1741312260288,1.4807,141.52,141.42,312.0]
[1741312261065,1.6064,141.53,141.42,29.14393252]
[1741312261366,1.4807,141.52,141.4,137.8]
[1741312261580,1.5942,141.49,141.35,0.03]
[1741312261761,1.4807,141.48,141.35,0.03]
[1741312262159,1.4807,141.48,141.35,167.11609409]
[1741312262387,1.4807,141.48,141.36,30.48654008]
[1741312262585,1.5942,141.49,141.41,0.14216157]
[1741312262960,1.5942,141.49,141.41,29.28609409]
[1741312263163,1.5942,141.49,141.41,0.28432314]
[1741312263361,1.5942,141.49,141.41,0.14216157]
[1741312263891,1.5942,141.49,141.4,137.8]
[1741312264095,3.0749,141.49,141.35,144.0722]
[1741312264272,3.0749,141.49,141.36,29.00177095]
[1741312264597,1.5942,141.49,141.38,29.00177095]
[1741312264782,1.5942,141.49,141.41,29.00177095]
[1741312265086,3.0749,141.49,141.39,137.8]
[1741312265466,1.5942,141.49,141.4,29.14393252]
[1741312265796,1.5942,141.49,141.41,0.14216157]
[1741312265983,1.5942,141.49,141.43,0.14216157]
[1741312266491,1.5942,141.49,141.42,0.14216157]
[1741312266992,1.5942,141.49,141.45,312.0]
[1741312267492,1.5942,141.49,141.41,137.8]
[1741312267793,1.5942,141.49,141.4,0.14216157]
[1741312268172,1.5942,141.49,141.43,0.14216157]
[1741312268376,3.57203309,141.5,141.45,0.28432314]
[1741312268582,8.1772,141.57,141.49,0.14216157]
[1741312268787,8.1772,141.57,141.49,29.28609409]
[1741312269090,8.1772,141.57,141.48,137.8]
[1741312269371,13.13852419,141.57,141.45,18.79181043]
[1741312269585,11.65782419,141.57,141.47,0.14216157]
[1741312269784,11.65782419,141.57,141.48,0.14216157]
[1741312269970,11.65782419,141.57,141.49,0.14216157]
[1741312270397,11.65782419,141.57,141.51,312.0]
[1741312271475,1.4807,141.56,141.45,0.14216157]
[1741312271679,1.4807,141.56,141.44,137.8]
[1741312272183,1.5509,141.55,141.41,137.8]
[1741312272395,11.6007,141.54,141.41,0.31432314]
[1741312273010,11.6007,141.54,141.41,0.03]
[1741312273298,6.4441,141.53,141.41,0.03]
[1741312273489,1.4807,141.52,141.41,0.03]
[1741312273689,1.4807,141.52,141.41,0.17216157]
[1741312273892,6.4441,141.53,141.42,30.62809693]
[1741312274275,6.4441,141.53,141.43,0.14216157]
[1741312274577,6.4441,141.53,141.46,312.0]
[1741312274983,10.05616877,141.53,141.46,312.0]
[1741312275695,10.05616877,141.53,141.41,0.03]
[1741312275696,1.4807,141.52,141.41,0.03]
[1741312275894,1.4807,141.52,141.38,137.8]
[1741312275895,6.4719,141.49,141.35,0.03]
[1741312276078,11.6007,141.48,141.35,0.03]
[1741312276278,27.13266716,141.48,141.38,0.28432314]
[1741312276480,15.53196716,141.48,141.4,29.00177095]
[1741312276716,1.5916,141.51,141.43,0.14216157]
[1741312276879,1.5916,141.51,141.41,0.28432314]
[1741312277597,3.0723,141.51,141.41,0.14216157]
[1741312277796,3.0723,141.51,141.41,0.28432314]
[1741312277972,3.0723,141.51,141.4,137.8]
[1741312278176,3.0723,141.51,141.38,166.80177095]
[1741312278404,3.0723,141.51,141.36,39.12177095]
[1741312278573,18.79181043,141.5,141.35,0.03]
[1741312278770,0.14216157,141.46,141.35,0.03]
[1741312278987,92.66791193,141.45,141.35,0.03]
[1741312279200,1.6411,141.44,141.35,0.03]
[1741312279499,1.4807,141.43,141.35,0.03]
[1741312279913,1.6411,141.41,141.35,0.03]
[1741312280075,1.4807,141.4,141.32,0.03]
[1741312280382,6.4246,141.38,141.32,0.03]
[1741312280576,6.4246,141.38,141.26,0.03]
[1741312280577,18.79181043,141.36,141.26,0.03]
[1741312280788,1.4807,141.35,141.26,0.03]
[1741312281499,1.4807,141.36,141.26,0.03]
[1741312281877,1.4807,141.36,141.26,0.17216157]
[1741312282077,11.782,141.37,141.26,29.31609409]
[1741312282388,11.782,141.37,141.29,312.0]
[1741312282898,1.662,141.37,141.3,29.00177095]
[1741312283101,10.1,141.42,141.31,29.28609409]
[1741312283403,13.60284116,141.42,141.33,29.14393252]
[1741312283572,13.60284116,141.42,141.34,29.00177095]
[1741312283774,10.12,141.47,141.37,29.00177095]
[1741312283997,10.12,141.47,141.38,29.14393252]
[1741312284199,10.12,141.47,141.38,0.14216157]
[1741312284376,13.72389489,141.47,141.38,0.14216157]
[1741312284895,13.72389489,141.47,141.35,166.80177095]
[1741312285094,18.64964886,141.45,141.32,29.00177095]
[1741312285294,1.4807,141.45,141.33,47.65141981]
[1741312285525,18.99066744,141.47,141.36,29.14393252]
[1741312285815,18.99066744,141.47,141.39,312.0]
[1741312286804,8.87066744,141.47,141.4,0.14216157]
[1741312287014,8.0866,141.49,141.4,29.14393252]
[1741312287415,5.25525156,141.49,141.42,0.14216157]
[1741312287606,3.59325156,141.49,141.43,29.00177095]
[1741312287817,5.4024577,141.51,141.43,29.00177095]
[1741312287992,5.4024577,141.51,141.42,0.14216157]
[1741312289009,5.4024577,141.51,141.39,18.64964886]
[1741312289234,1.4807,141.5,141.4,0.14216157]
[1741312289601,1.4807,141.5,141.4,0.28432314]
[1741312289922,5.4024577,141.51,141.42,312.0]
[1741312290288,5.4024577,141.51,141.42,0.14216157]
[1741312290495,5.4024577,141.51,141.42,0.28432314]
[1741312290715,5.4024577,141.51,141.44,0.14216157]
[1741312291214,5.4024577,141.51,141.42,137.94216157]
[1741312291416,5.4024577,141.51,141.43,0.14216157]
[1741312292191,5.4024577,141.51,141.42,137.8]
[1741312292422,1.4807,141.5,141.39,18.64964886]
[1741312292825,1.4807,141.5,141.4,0.14216157]
[1741312293334,1.4807,141.5,141.42,312.0]
[1741312293834,5.4024577,141.51,141.42,0.14216157]
[1741312294034,5.4024577,141.51,141.41,0.14216157]
[1741312294204,1.4807,141.5,141.41,0.14216157]
[1741312294624,1.4807,141.5,141.41,0.28432314]
[1741312295509,1.4807,141.5,141.39,18.79181043]
[1741312295815,1.4807,141.5,141.4,0.14216157]
[1741312296015,5.4024577,141.51,141.4,0.14216157]
[1741312296425,1.5137,141.5,141.4,0.14216157]
[1741312296837,1.5137,141.5,141.42,312.0]
[1741312297223,1.6084,141.49,141.36,18.64964886]
[1741312297528,1.6084,141.49,141.35,137.8]
[1741312297529,11.5807,141.48,141.34,47.65141981]
[1741312297730,10.1,141.48,141.39,0.28432314]
[1741312297938,5.17572812,141.49,141.39,18.933972]
[1741312298112,6.65642812,141.49,141.4,0.14216157]
[1741312298309,5.17572812,141.49,141.4,0.14216157]
[1741312298526,1.4807,141.48,141.37,0.14216157]
[1741312299032,5.17572812,141.49,141.39,0.28432314]
[1741312299252,5.17572812,141.49,141.41,0.14216157]
[1741312300109,5.17572812,141.49,141.42,312.0]
[1741312300538,1.4807,141.48,141.39,137.94216157]
[1741312300840,1.4807,141.48,141.34,10.08]
[1741312301031,6.5928,141.47,141.34,18.933972]
[1741312301240,1.4807,141.46,141.33,183.04837095]
[1741312301542,1.4807,141.46,141.34,18.933972]
[1741312301749,1.4807,141.46,141.34,47.93574295]
[1741312302040,6.5928,141.47,141.36,29.28609409]
[1741312302220,6.5928,141.47,141.36,0.14216157]
[1741312302423,1.4807,141.46,141.34,18.64964886]
[1741312302647,1.4807,141.46,141.35,0.14216157]
[1741312302848,1.4807,141.46,141.35,0.28432314]
[1741312303147,1.4807,141.46,141.34,0.14216157]
[1741312303646,1.4807,141.46,141.36,312.0]
[1741312305131,1.5004,141.45,141.31,0.03]
[1741312305332,1.4807,141.44,141.31,0.31432314]
[1741312306045,1.5004,141.45,141.33,0.14216157]
[1741312306629,1.5004,141.45,141.34,0.14216157]
[1741312306822,1.5004,141.45,141.35,0.14216157]
[1741312307023,1.5004,141.45,141.38,0.14216157]
[1741312307248,1.5004,141.45,141.38,29.14393252]
[1741312307544,1.5004,141.45,141.38,0.14216157]
[1741312307728,1.5004,141.45,141.37,0.28432314]
[1741312308117,2.9811,141.45,141.4,312.0]
[1741312308319,2.9811,141.45,141.36,137.8]
[1741312309450,2.9811,141.45,141.32,10.08]
[1741312309750,2.9811,141.45,141.32,0.28432314]
[1741312310153,18.79181043,141.44,141.32,0.14216157]
[1741312310329,1.4807,141.43,141.32,0.14216157]
[1741312310654,1.4807,141.43,141.31,0.03]
[1741312311047,1.4807,141.43,141.31,0.17216157]
[1741312311349,1.4807,141.43,141.33,312.0]
[1741312312450,1.4807,141.43,141.31,0.17216157]
[1741312312451,1.6248,141.41,141.31,0.03]
[1741312312651,1.4807,141.4,141.31,0.03]
[1741312313844,10.08,141.39,141.31,0.03]
[1741312314056,1.4807,141.38,141.31,0.03]
[1741312314553,1.4807,141.38,141.26,0.03]
[1741312314554,0.14216157,141.35,141.26,0.03]
[1741312314762,18.64964886,141.34,141.26,0.03]
[1741312314943,1.4807,141.33,141.26,0.03]
[1741312315257,1.5224,141.32,141.26,0.03]
[1741312315460,1.4807,141.31,141.26,0.03]
[1741312316771,6.0296,141.3,141.26,0.03]
[1741312316938,1.4807,141.29,141.26,0.03]
[1741312317262,6.81198459,141.29,141.26,0.03]
[1741312317440,1.4807,141.29,141.26,0.03]
[1741312318041,18.79181043,141.28,141.16,0.03]
[1741312318237,1.6541,141.26,141.16,0.03]
[1741312318455,1.4807,141.25,141.16,0.03]
[1741312318638,6.1091,141.24,141.16,0.03]
[1741312318842,18.79181043,141.22,141.16,0.03]
[1741312319064,1.4807,141.21,141.16,0.03]
[1741312319288,20.44591043,141.2,141.11,0.03]
[1741312319461,1.4807,141.19,141.11,0.03]
[1741312321343,10.08,141.18,141.11,0.03]
[1741312321556,1.4807,141.17,141.11,0.03]
[1741312322170,24.97871043,141.16,140.99,144.0012]
[1741312322349,18.79181043,141.14,140.99,183.08297095]
[1741312322551,1.5775,141.12,140.99,154.0812]
[1741312322744,3.0582,141.12,141.0,18.64964886]
[1741312323065,3.0582,141.12,141.01,0.28432314]
[1741312323369,3.0582,141.12,141.0,18.64964886]
[1741312323673,3.0582,141.12,141.01,0.14216157]
[1741312323874,1.5775,141.12,141.01,0.28432314]
[1741312324168,1.5775,141.12,141.0,47.65141981]
[1741312324169,1.4807,141.11,140.99,36.69160449]
[1741312324372,1.5775,141.12,141.0,18.64964886]
[1741312324668,1.5775,141.12,141.01,0.14216157]
[1741312325165,1.5775,141.12,141.03,0.14216157]
[1741312325854,1.5775,141.12,141.03,49.2818554]
[1741312326053,1.5775,141.12,141.03,18.79181043]
[1741312326367,3.54153453,141.15,141.09,0.14216157]
[1741312326572,1.4807,141.21,141.09,0.14216157]
[1741312327575,1.4807,141.21,141.1,0.14216157]
[1741312328468,6.59345396,141.22,141.12,29.00177095]
[1741312328773,6.59345396,141.22,141.13,312.0]
[1741312329295,25.24310282,141.22,141.13,312.0]
[1741312329447,18.64964886,141.21,141.13,312.0]
[1741312329647,25.24310282,141.22,141.13,312.0]
[1741312329648,1.4807,141.2,141.13,312.0]
[1741312329856,1.4807,141.2,141.07,18.933972]
[1741312330278,18.79181043,141.19,141.05,18.64964886]
[1741312330465,1.5163,141.15,141.04,25.02464886]
[1741312330684,2.997,141.15,141.05,0.28432314]
[1741312331085,2.997,141.15,141.03,10.08]
[1741312331463,2.997,141.15,141.04,0.14216157]
[1741312331664,18.64964886,141.14,141.0,35.28797095]
[1741312331894,18.79181043,141.12,140.99,0.03]
[1741312332089,1.4807,141.11,140.99,29.03177095]
[1741312332399,1.4807,141.11,141.0,0.28432314]
[1741312332762,1.4807,141.11,141.02,312.0]
[1741312332965,20.13034886,141.12,141.02,312.0]
[1741312333381,0.14216157,141.09,140.99,0.03]
[1741312333695,20.15964886,141.07,140.92,29.00177095]
[1741312333875,6.6241,141.05,140.89,154.9577]
[1741312334194,8.1048,141.05,140.94,29.00177095]
[1741312334375,6.6241,141.05,140.96,29.00177095]
[1741312334580,6.6241,141.05,140.99,0.28432314]
[1741312334892,1.51,141.07,141.01,0.14216157]
[1741312335188,1.51,141.07,141.02,0.14216157]
[1741312335389,6.3725,141.1,141.02,0.14216157]
[1741312335769,6.3725,141.1,141.02,29.14393252]
[1741312335991,6.3725,141.1,141.02,0.14216157]
[1741312336291,6.3725,141.1,141.03,312.0]
[1741312336467,1.6406,141.11,141.03,312.0]
[1741312336468,1.6406,141.11,141.04,18.933972]
[1741312336810,1.6406,141.11,141.06,0.14216157]
[1741312337295,1.6406,141.11,141.04,0.14216157]
[1741312337477,1.6406,141.11,141.03,10.06]
[1741312337677,1.6406,141.11,140.98,137.8]
[1741312337678,1.4807,141.1,140.99,18.64964886]
[1741312338690,99.71686079,141.09,140.94,174.8532]
[1741312338872,18.64964886,141.07,140.94,218.85886795]
[1741312339067,1.4807,141.06,140.94,218.85886795]
[1741312339280,25.04644886,141.05,140.91,137.8]
[1741312339465,25.04644886,141.05,140.92,18.64964886]
[1741312339466,1.6571,141.03,140.92,18.64964886]
[1741312339698,1.4807,141.02,140.93,44.00566795]
[1741312339994,1.6571,141.03,140.95,0.14216157]
[1741312340600,1.6571,141.03,140.95,44.14782952]
[1741312340903,3.60961046,141.05,140.99,0.14216157]
[1741312341077,13.0798,141.09,140.99,44.28999109]
[1741312341400,11.5991,141.09,140.99,44.28999109]
[1741312341693,11.5991,141.09,141.01,0.14216157]
[1741312341995,3.50416301,141.09,141.04,0.14216157]
[1741312342293,20.18874886,141.14,141.07,0.14216157]
[1741312342294,6.83471082,141.14,141.07,0.14216157]
[1741312342506,6.83471082,141.14,141.06,44.00566795]
[1741312342790,26.96505968,141.14,141.03,44.00566795]
[1741312343175,10.37689689,141.14,141.05,44.00566795]
[1741312343372,5.08128607,141.14,141.07,312.0]
[1741312343573,10.58376511,141.14,141.07,312.0]
[1741312343793,10.58376511,141.14,141.05,54.06566795]
[1741312344092,5.08128607,141.14,141.05,54.06566795]
[1741312344289,1.5391,141.14,141.08,44.00566795]
[1741312344497,1.5391,141.14,141.09,0.28432314]
[1741312344694,0.033,141.1,141.09,0.28432314]
[1741312345293,0.033,141.1,141.09,0.14216157]
[1741312345499,0.033,141.1,141.09,18.933972]
[1741312345898,0.033,141.1,141.09,0.28432314]
[1741312346898,0.033,141.1,141.09,312.28432314]
[1741312347789,0.033,141.1,141.09,312.14216157]
[1741312349329,0.033,141.1,141.05,18.64964886]
[1741312349673,0.033,141.1,141.06,0.14216157]
[1741312349901,0.033,141.1,141.09,0.14216157]
[1741312350800,0.033,141.1,141.07,0.14216157]
[1741312351005,0.033,141.1,141.03,18.64964886]
[1741312351585,0.033,141.1,141.04,0.28432314]
[1741312351778,0.033,141.1,141.04,18.933972]
[1741312352004,0.033,141.1,141.07,312.0]
[1741312352206,0.033,141.1,141.08,0.14216157]
[1741312352706,0.033,141.1,141.06,0.28432314]
[1741312353304,0.033,141.1,141.02,1.48799206]
[1741312353507,0.033,141.1,141.02,18.64964886]
[1741312353814,0.033,141.1,141.04,18.64964886]
[1741312354106,0.033,141.1,141.05,0.28432314]
[1741312354299,0.033,141.1,141.05,18.933972]
[1741312355707,0.033,141.1,141.09,312.14216157]
[1741312358326,0.033,141.1,141.09,312.0]
[1741312358806,0.033,141.1,141.04,29.3290346]
[1741312359014,0.033,141.1,141.03,0.14216157]
[1741312359015,0.033,141.1,141.03,30.95931097]
[1741312359222,0.033,141.1,141.05,0.28432314]
[1741312359691,0.033,141.1,141.05,0.14216157]
[1741312360001,0.033,141.1,141.05,38.19104654]
[1741312360399,0.033,141.1,141.0,144.2693]
[1741312360604,1.6654,141.1,141.01,18.64964886]
[1741312360984,1.6654,141.1,141.02,0.28432314]
[1741312361203,3.1461,141.1,140.99,0.03]
[1741312361595,3.1461,141.1,141.02,312.0]
[1741312361796,18.64964886,141.09,141.02,312.0]
[1741312361996,1.4807,141.08,140.99,0.03]
[1741312362487,18.64964886,141.07,140.99,0.03]
[1741312362992,18.64964886,141.05,140.99,0.03]
[1741312363305,26.54644886,141.03,140.99,0.03]
[1741312363505,1.4807,141.02,140.99,0.03]
[1741312364010,1.4807,141.02,140.91,0.03]
[1741312364208,1.4807,141.02,140.91,29.3590346]
[1741312364411,1.4807,141.02,140.92,29.3290346]
[1741312364585,7.8968,141.03,140.95,29.61335774]
[1741312364787,7.8968,141.03,140.95,0.28432314]
[1741312364996,7.8968,141.03,140.95,312.14216157]
[1741312365201,18.64964886,141.01,140.91,0.03]
[1741312365402,1.4807,141.0,140.91,0.03]
[1741312365713,81.06721193,141.02,140.92,48.12084503]
[1741312365714,82.54791193,141.02,140.92,48.12084503]
[1741312366018,7.8968,141.03,140.95,0.14216157]
[1741312366220,7.8968,141.03,140.96,0.14216157]
[1741312366721,1.4807,141.06,140.96,29.47119617]
[1741312367421,84.66946864,141.07,140.99,0.14216157]
[1741312367605,3.60225671,141.07,140.99,0.14216157]